[Event "*** Titled Tuesday Blitz"]
[Site "Chess.com"]
[Date "2020.04.07"]
[Round "3"]
[White "Atakishiyev04"]
[Black "sandromareco"]
[Result "1/2-1/2"]
[WhiteElo "2654"]
[BlackElo "2902"]
[TimeControl "180+1"]
[EndTime "13:30:28 PDT"]
[Termination "Game drawn by repetition"]

1. d4 {[%clk 0:03:00.9]} 1... Nf6 {[%clk 0:02:59.2]} 2. c4 {[%clk 0:02:57]} 2...
e6 {[%clk 0:02:59.4]} 3. g3 {[%clk 0:02:57]} 3... d5 {[%clk 0:02:59.3]} 4. Nf3
{[%clk 0:02:57.6]} 4... Bb4+ {[%clk 0:02:59.4]} 5. Bd2 {[%clk 0:02:57.5]} 5...
Be7 {[%clk 0:02:58.9]} 6. Bg2 {[%clk 0:02:58.1]} 6... O-O {[%clk 0:02:58.6]} 7.
O-O {[%clk 0:02:58.7]} 7... Nbd7 {[%clk 0:02:59.1]} 8. Qc2 {[%clk 0:02:58.6]}
8... Ne4 {[%clk 0:02:58.6]} 9. Bf4 {[%clk 0:02:58.6]} 9... c6 {[%clk 0:02:58.9]}
10. Nfd2 {[%clk 0:02:56.8]} 10... Nd6 {[%clk 0:02:54.6]} 11. e4 {[%clk
0:02:52.8]} 11... dxe4 {[%clk 0:02:14.7]} 12. Bxd6 {[%clk 0:02:52]} 12... Bxd6
{[%clk 0:02:14.4]} 13. Nxe4 {[%clk 0:02:52.3]} 13... Be7 {[%clk 0:02:14.5]} 14.
Nbc3 {[%clk 0:02:51.9]} 14... b6 {[%clk 0:02:13.2]} 15. Rad1 {[%clk 0:02:49.6]}
15... Ba6 {[%clk 0:02:12.1]} 16. b3 {[%clk 0:02:49]} 16... Rc8 {[%clk
0:02:10.5]} 17. Rd2 {[%clk 0:02:46.5]} 17... Qc7 {[%clk 0:02:10.3]} 18. Rfd1
{[%clk 0:02:46.7]} 18... Rfd8 {[%clk 0:02:09.4]} 19. Qb2 {[%clk 0:02:38.3]}
19... Nf6 {[%clk 0:02:07]} 20. Nxf6+ {[%clk 0:02:24.4]} 20... Bxf6 {[%clk
0:02:06.5]} 21. Ne4 {[%clk 0:02:25]} 21... Be7 {[%clk 0:02:06.1]} 22. c5 {[%clk
0:02:20.3]} 22... Rd7 {[%clk 0:02:02.4]} 23. b4 {[%clk 0:02:13.9]} 23... Rcd8
{[%clk 0:02:01.6]} 24. a4 {[%clk 0:02:05.5]} 24... Bc4 {[%clk 0:02:01.6]} 25.
Qc3 {[%clk 0:02:03.5]} 25... Bd5 {[%clk 0:02:01.6]} 26. Qe3 {[%clk 0:01:59.7]}
26... a5 {[%clk 0:01:58.8]} 27. Qc3 {[%clk 0:01:26.2]} 27... axb4 {[%clk
0:01:56.8]} 28. Qxb4 {[%clk 0:01:26.7]} 28... bxc5 {[%clk 0:01:44.8]} 29. Nxc5
{[%clk 0:01:20.8]} 29... Bxg2 {[%clk 0:01:44.6]} 30. Kxg2 {[%clk 0:01:21.2]}
30... Rd5 {[%clk 0:01:44.6]} 31. a5 {[%clk 0:01:16.4]} 31... Qa7 {[%clk
0:01:43.6]} 32. Qc3 {[%clk 0:01:04.1]} 32... h5 {[%clk 0:01:42.1]} 33. Nb3
{[%clk 0:01:03.4]} 33... Qb7 {[%clk 0:01:37.7]} 34. Qc4 {[%clk 0:01:00.6]} 34...
c5 {[%clk 0:01:35.8]} 35. Kg1 {[%clk 0:00:58.1]} 35... cxd4 {[%clk 0:01:33.3]}
36. Rxd4 {[%clk 0:00:55.2]} 36... Rc8 {[%clk 0:01:32.4]} 37. Qd3 {[%clk
0:00:51.8]} 37... Rxd4 {[%clk 0:01:29.7]} 38. Nxd4 {[%clk 0:00:52.3]} 38... Rd8
{[%clk 0:01:28.7]} 39. Qc2 {[%clk 0:00:50.3]} 39... h4 {[%clk 0:01:18]} 40. Ne2
{[%clk 0:00:46.7]} 40... Ra8 {[%clk 0:01:17.7]} 41. Qd2 {[%clk 0:00:40.8]} 41...
Bb4 {[%clk 0:01:15.5]} 42. Qg5 {[%clk 0:00:39.8]} 42... Qf3 {[%clk 0:01:09.2]}
43. Rd8+ {[%clk 0:00:39.3]} 43... Rxd8 {[%clk 0:01:09.1]} 44. Qxd8+ {[%clk
0:00:40.2]} 44... Bf8 {[%clk 0:01:08.6]} 45. Nf4 {[%clk 0:00:28.9]} 45... e5
{[%clk 0:01:02.3]} 46. Qd3 {[%clk 0:00:24.3]} 46... Qa8 {[%clk 0:00:58.4]} 47.
Qd5 {[%clk 0:00:20.4]} 47... Qe8 {[%clk 0:00:52]} 48. Nd3 {[%clk 0:00:19.9]}
48... e4 {[%clk 0:00:52.3]} 49. Qe5 {[%clk 0:00:20]} 49... Qc6 {[%clk
0:00:49.9]} 50. Nf4 {[%clk 0:00:19.3]} 50... Bd6 {[%clk 0:00:48.9]} 51. Qg5
{[%clk 0:00:17.5]} 51... hxg3 {[%clk 0:00:39.8]} 52. hxg3 {[%clk 0:00:17.4]}
52... e3 {[%clk 0:00:36.1]} 53. Qd8+ {[%clk 0:00:14.1]} 53... Kh7 {[%clk
0:00:34.4]} 54. Qh4+ {[%clk 0:00:14.2]} 54... Kg8 {[%clk 0:00:34.5]} 55. Qd8+
{[%clk 0:00:14.9]} 55... Kh7 {[%clk 0:00:33.9]} 56. Qh4+ {[%clk 0:00:14.5]}
56... Kg8 {[%clk 0:00:33.7]} 57. Qd8+ {[%clk 0:00:15.1]} 1/2-1/2

[Event "*** Titled Tuesday Blitz"]
[Site "Chess.com"]
[Date "2020.04.07"]
[Round "3"]
[White "XDPS"]
[Black "adiosabu"]
[Result "1-0"]
[WhiteElo "2708"]
[BlackElo "2503"]
[TimeControl "180+1"]
[EndTime "13:30:30 PDT"]
[Termination "XDPS won on time"]

1. d4 {[%clk 0:02:59.5]} 1... Nf6 {[%clk 0:02:57.7]} 2. Bf4 {[%clk 0:02:57.8]}
2... d6 {[%clk 0:02:47.3]} 3. Nc3 {[%clk 0:02:57.1]} 3... Bf5 {[%clk 0:02:41.1]}
4. f3 {[%clk 0:02:53]} 4... d5 {[%clk 0:02:31.7]} 5. e3 {[%clk 0:02:47.8]} 5...
e6 {[%clk 0:02:30]} 6. Nb5 {[%clk 0:02:35.2]} 6... Na6 {[%clk 0:02:28.9]} 7. c3
{[%clk 0:02:28.9]} 7... Be7 {[%clk 0:02:24]} 8. a4 {[%clk 0:02:27.5]} 8... O-O
{[%clk 0:02:21.9]} 9. Bg3 {[%clk 0:02:13.4]} 9... h6 {[%clk 0:02:18.4]} 10. Bd3
{[%clk 0:02:11.9]} 10... Re8 {[%clk 0:02:13.4]} 11. Ne2 {[%clk 0:02:10.6]} 11...
c6 {[%clk 0:02:09.4]} 12. Na3 {[%clk 0:02:09.3]} 12... Bd6 {[%clk 0:02:09.9]}
13. O-O {[%clk 0:02:07.1]} 13... Bxd3 {[%clk 0:02:03.3]} 14. Qxd3 {[%clk
0:02:08]} 14... e5 {[%clk 0:02:03.7]} 15. Nc2 {[%clk 0:01:59.5]} 15... Nc7
{[%clk 0:02:01.3]} 16. Kh1 {[%clk 0:01:54.1]} 16... Qe7 {[%clk 0:01:55.9]} 17.
Qf5 {[%clk 0:01:51.8]} 17... Rad8 {[%clk 0:01:48.2]} 18. Bh4 {[%clk 0:01:47.8]}
18... Qe6 {[%clk 0:01:40.7]} 19. Qd3 {[%clk 0:01:45]} 19... g5 {[%clk
0:01:27.3]} 20. Bg3 {[%clk 0:01:42.9]} 20... e4 {[%clk 0:01:24.9]} 21. Qd1
{[%clk 0:01:43.4]} 21... exf3 {[%clk 0:01:11.6]} 22. gxf3 {[%clk 0:01:40.6]}
22... Qh3 {[%clk 0:01:06]} 23. Ng1 {[%clk 0:01:30]} 23... Qh5 {[%clk 0:00:59.3]}
24. Kg2 {[%clk 0:01:28]} 24... Ne6 {[%clk 0:00:53.1]} 25. Ne2 {[%clk 0:01:07.7]}
25... Ng7 {[%clk 0:00:44.8]} 26. Bxd6 {[%clk 0:01:05.3]} 26... Rxd6 {[%clk
0:00:45.7]} 27. Ng3 {[%clk 0:01:05.9]} 27... Qg6 {[%clk 0:00:40.1]} 28. Qd2
{[%clk 0:01:04.9]} 28... Rde6 {[%clk 0:00:36.8]} 29. Rae1 {[%clk 0:01:05]} 29...
h5 {[%clk 0:00:34.9]} 30. Nb4 {[%clk 0:01:00.7]} 30... h4 {[%clk 0:00:33.1]} 31.
Nh1 {[%clk 0:01:00.9]} 31... g4 {[%clk 0:00:33.2]} 32. f4 {[%clk 0:00:56.3]}
32... Nf5 {[%clk 0:00:28.4]} 33. Nc2 {[%clk 0:00:55.1]} 33... h3+ {[%clk
0:00:19.5]} 34. Kg1 {[%clk 0:00:54.7]} 34... Nh4 {[%clk 0:00:18.8]} 35. Ng3
{[%clk 0:00:49.4]} 35... Ne4 {[%clk 0:00:18.6]} 36. Qd1 {[%clk 0:00:19.8]} 36...
f5 {[%clk 0:00:13.7]} 37. Kh1 {[%clk 0:00:16.6]} 37... Nxg3+ {[%clk 0:00:11.5]}
38. hxg3 {[%clk 0:00:16.1]} 38... Nf3 {[%clk 0:00:12.4]} 39. Rxf3 {[%clk
0:00:16.5]} 39... gxf3 {[%clk 0:00:12.3]} 40. Qxf3 {[%clk 0:00:17.4]} 40... Qg4
{[%clk 0:00:11.7]} 41. Qf2 {[%clk 0:00:12.5]} 41... Rg6 {[%clk 0:00:10.9]} 42.
Kh2 {[%clk 0:00:12.8]} 42... Re7 {[%clk 0:00:08.5]} 43. Nb4 {[%clk 0:00:13]}
43... Reg7 {[%clk 0:00:05.9]} 44. Rg1 {[%clk 0:00:13.3]} 44... Re6 {[%clk
0:00:01.2]} 45. Nd3 {[%clk 0:00:13.4]} 45... Qh5 {[%clk 0:00:00.7]} 46. Ne5
{[%clk 0:00:13.1]} 1-0

[Event "*** Titled Tuesday Blitz"]
[Site "Chess.com"]
[Date "2020.04.07"]
[Round "3"]
[White "ElHelvetico"]
[Black "StockholmMissile"]
[Result "1-0"]
[WhiteElo "2613"]
[BlackElo "2386"]
[TimeControl "180+1"]
[EndTime "13:30:30 PDT"]
[Termination "ElHelvetico won on time"]

1. d4 {[%clk 0:03:00.9]} 1... d5 {[%clk 0:02:58.9]} 2. c4 {[%clk 0:03:00.5]}
2... c6 {[%clk 0:02:58.3]} 3. Nf3 {[%clk 0:02:59.7]} 3... Nf6 {[%clk 0:02:57.9]}
4. Nc3 {[%clk 0:03:00.3]} 4... e6 {[%clk 0:02:57.7]} 5. g3 {[%clk 0:02:58.4]}
5... dxc4 {[%clk 0:02:57.2]} 6. Bg2 {[%clk 0:02:51.3]} 6... b5 {[%clk
0:02:57.2]} 7. Ne5 {[%clk 0:02:48.2]} 7... a6 {[%clk 0:02:57.2]} 8. b3 {[%clk
0:02:45.3]} 8... cxb3 {[%clk 0:02:55.6]} 9. Qxb3 {[%clk 0:02:30.3]} 9... Bb7
{[%clk 0:02:50.2]} 10. e3 {[%clk 0:02:29.2]} 10... Nbd7 {[%clk 0:02:41.2]} 11.
f4 {[%clk 0:02:04.8]} 11... Nxe5 {[%clk 0:02:39.9]} 12. fxe5 {[%clk 0:02:05.7]}
12... Nd5 {[%clk 0:02:38.3]} 13. Ne4 {[%clk 0:02:01.9]} 13... Be7 {[%clk
0:02:14]} 14. O-O {[%clk 0:02:00.7]} 14... O-O {[%clk 0:02:13.9]} 15. a4 {[%clk
0:01:55.7]} 15... Qc7 {[%clk 0:02:09]} 16. Bd2 {[%clk 0:01:50.3]} 16... c5
{[%clk 0:02:05.1]} 17. Nxc5 {[%clk 0:01:40.5]} 17... Bxc5 {[%clk 0:02:04.3]} 18.
Rfc1 {[%clk 0:01:41]} 18... bxa4 {[%clk 0:01:45.6]} 19. Rxa4 {[%clk 0:01:32]}
19... Qb6 {[%clk 0:01:41.1]} 20. Qa2 {[%clk 0:00:44.8]} 20... Be7 {[%clk
0:01:39.8]} 21. Rb1 {[%clk 0:00:37.6]} 21... Qa7 {[%clk 0:01:38.2]} 22. e4
{[%clk 0:00:38]} 22... Nc7 {[%clk 0:01:31.9]} 23. Be3 {[%clk 0:00:35.8]} 23...
Bc6 {[%clk 0:01:21.3]} 24. Rc4 {[%clk 0:00:33.9]} 24... Bb5 {[%clk 0:01:18.8]}
25. Rc3 {[%clk 0:00:34.5]} 25... Qb8 {[%clk 0:01:03]} 26. d5 {[%clk 0:00:32.3]}
26... Bd8 {[%clk 0:00:44.5]} 27. d6 {[%clk 0:00:30.9]} 27... Ne8 {[%clk
0:00:44.6]} 28. Bf1 {[%clk 0:00:28.1]} 28... Bb6 {[%clk 0:00:40.4]} 29. Qf2
{[%clk 0:00:27.3]} 29... Bxe3 {[%clk 0:00:39]} 30. Qxe3 {[%clk 0:00:28.2]} 30...
Qa7 {[%clk 0:00:27]} 31. Qxa7 {[%clk 0:00:19.4]} 31... Rxa7 {[%clk 0:00:27.9]}
32. Bxb5 {[%clk 0:00:16.8]} 32... axb5 {[%clk 0:00:28.8]} 33. Rc8 {[%clk
0:00:17.3]} 33... f6 {[%clk 0:00:25.3]} 34. Rxb5 {[%clk 0:00:15.3]} 34... fxe5
{[%clk 0:00:21.9]} 35. Rbb8 {[%clk 0:00:15.8]} 35... Kf7 {[%clk 0:00:21.6]} 36.
Rd8 {[%clk 0:00:12.8]} 36... Kg6 {[%clk 0:00:07.2]} 37. Rxe8 {[%clk 0:00:12.6]}
37... Ra1+ {[%clk 0:00:06.8]} 38. Kg2 {[%clk 0:00:13]} 38... Ra2+ {[%clk
0:00:06.2]} 39. Kh3 {[%clk 0:00:13.1]} 39... Rff2 {[%clk 0:00:05.8]} 40. Rxe6+
{[%clk 0:00:13.1]} 40... Kf7 {[%clk 0:00:04]} 41. Re7+ {[%clk 0:00:12.9]} 41...
Kg6 {[%clk 0:00:04.4]} 42. Re6+ {[%clk 0:00:11.7]} 42... Kf7 {[%clk 0:00:03.6]}
43. Rxe5 {[%clk 0:00:12.1]} 43... Rxh2+ {[%clk 0:00:03.1]} 44. Kg4 {[%clk
0:00:12.8]} 44... Kg6 {[%clk 0:00:03.2]} 45. Re6+ {[%clk 0:00:12.1]} 45... Kf7
{[%clk 0:00:03.6]} 46. Re7+ {[%clk 0:00:12.5]} 46... Kg6 {[%clk 0:00:03.2]} 47.
Rbb7 {[%clk 0:00:11.9]} 47... h5+ {[%clk 0:00:03]} 48. Kf4 {[%clk 0:00:12.4]}
48... Rhf2+ {[%clk 0:00:02.5]} 49. Ke5 {[%clk 0:00:13]} 1-0

[Event "*** Titled Tuesday Blitz"]
[Site "Chess.com"]
[Date "2020.04.07"]
[Round "3"]
[White "1random"]
[Black "silverback96"]
[Result "0-1"]
[WhiteElo "2711"]
[BlackElo "2139"]
[TimeControl "180+1"]
[EndTime "13:30:31 PDT"]
[Termination "silverback96 won on time"]

1. d4 {[%clk 0:02:56.3]} 1... Nf6 {[%clk 0:02:58.6]} 2. c4 {[%clk 0:02:49.7]}
2... c5 {[%clk 0:02:58.6]} 3. d5 {[%clk 0:02:50]} 3... e6 {[%clk 0:02:58.9]} 4.
Nc3 {[%clk 0:02:48.6]} 4... exd5 {[%clk 0:02:59.5]} 5. cxd5 {[%clk 0:02:49.5]}
5... d6 {[%clk 0:03:00.4]} 6. Nf3 {[%clk 0:02:46.2]} 6... g6 {[%clk 0:03:00.9]}
7. Bf4 {[%clk 0:02:45.7]} 7... Bg7 {[%clk 0:03:00.9]} 8. Qa4+ {[%clk 0:02:44.9]}
8... Bd7 {[%clk 0:03:00.4]} 9. Qb3 {[%clk 0:02:44.6]} 9... b5 {[%clk 0:03:01]}
10. Bxd6 {[%clk 0:02:42.2]} 10... Qb6 {[%clk 0:02:55.7]} 11. Be5 {[%clk
0:02:20.8]} 11... O-O {[%clk 0:02:55.9]} 12. e3 {[%clk 0:02:20.5]} 12... c4
{[%clk 0:02:56.3]} 13. Qd1 {[%clk 0:02:19.5]} 13... b4 {[%clk 0:02:56.6]} 14.
Nb1 {[%clk 0:02:16]} 14... Rc8 {[%clk 0:02:57.1]} 15. Be2 {[%clk 0:02:08.4]}
15... Qa5 {[%clk 0:02:51.7]} 16. Qd4 {[%clk 0:01:47.7]} 16... Qb6 {[%clk
0:01:27.8]} 17. O-O {[%clk 0:01:25.6]} 17... Qxd4 {[%clk 0:01:26.5]} 18. Nxd4
{[%clk 0:01:25.7]} 18... Nxd5 {[%clk 0:01:26.1]} 19. Bxg7 {[%clk 0:01:26.6]}
19... Kxg7 {[%clk 0:01:26.7]} 20. Rc1 {[%clk 0:01:09.5]} 20... Nc6 {[%clk
0:00:53.4]} 21. Nxc6 {[%clk 0:01:03.7]} 21... Rxc6 {[%clk 0:00:48.6]} 22. Rxc4
{[%clk 0:00:55.7]} 22... Rac8 {[%clk 0:00:45.8]} 23. Nd2 {[%clk 0:00:49.8]}
23... Nb6 {[%clk 0:00:40.2]} 24. Rxc6 {[%clk 0:00:38.7]} 24... Rxc6 {[%clk
0:00:41.1]} 25. Bd1 {[%clk 0:00:17]} 25... Be6 {[%clk 0:00:25.8]} 26. Nf3 {[%clk
0:00:16.4]} 26... a5 {[%clk 0:00:21.7]} 27. Nd4 {[%clk 0:00:16]} 27... Rc8
{[%clk 0:00:13.5]} 28. Kf1 {[%clk 0:00:14.1]} 28... Nc4 {[%clk 0:00:13.6]} 29.
b3 {[%clk 0:00:12.6]} 29... Nd2+ {[%clk 0:00:14.2]} 30. Ke1 {[%clk 0:00:11.8]}
30... Ne4 {[%clk 0:00:15.1]} 31. Bf3 {[%clk 0:00:10.2]} 31... Nd6 {[%clk
0:00:12.2]} 32. a3 {[%clk 0:00:06.9]} 32... Nf5 {[%clk 0:00:10.6]} 33. Nxe6+
{[%clk 0:00:05.1]} 33... fxe6 {[%clk 0:00:11.5]} 34. axb4 {[%clk 0:00:06]} 34...
axb4 {[%clk 0:00:12.2]} 35. Ra4 {[%clk 0:00:06.8]} 35... Rc2 {[%clk 0:00:12.1]}
36. Rxb4 {[%clk 0:00:05.9]} 36... Kf6 {[%clk 0:00:12.6]} 37. Rb7 {[%clk
0:00:05.8]} 37... h5 {[%clk 0:00:13]} 38. Be4 {[%clk 0:00:04.5]} 38... Nd6
{[%clk 0:00:13.3]} 39. Bxc2 {[%clk 0:00:03.8]} 39... Nxb7 {[%clk 0:00:12.5]} 40.
Kd2 {[%clk 0:00:04.6]} 40... g5 {[%clk 0:00:12.4]} 41. Kc3 {[%clk 0:00:03.6]}
41... Ke5 {[%clk 0:00:12.5]} 42. b4 {[%clk 0:00:02.9]} 42... Kd6 {[%clk
0:00:12.7]} 0-1

[Event "*** Titled Tuesday Blitz"]
[Site "Chess.com"]
[Date "2020.04.07"]
[Round "3"]
[White "pastouche06"]
[Black "rasmussvane"]
[Result "0-1"]
[WhiteElo "2481"]
[BlackElo "2863"]
[TimeControl "180+1"]
[EndTime "13:30:32 PDT"]
[Termination "rasmussvane won by resignation"]

1. d4 {[%clk 0:03:00.8]} 1... d5 {[%clk 0:03:00.1]} 2. c4 {[%clk 0:03:00.3]}
2... e6 {[%clk 0:03:00.7]} 3. Nc3 {[%clk 0:03:00.5]} 3... a6 {[%clk 0:03:01.3]}
4. cxd5 {[%clk 0:02:55.6]} 4... exd5 {[%clk 0:03:02.2]} 5. Bf4 {[%clk
0:02:56.1]} 5... Nf6 {[%clk 0:03:02.8]} 6. e3 {[%clk 0:02:55.7]} 6... Bd6 {[%clk
0:03:03.5]} 7. Bxd6 {[%clk 0:02:54.7]} 7... Qxd6 {[%clk 0:03:04.4]} 8. Bd3
{[%clk 0:02:52]} 8... O-O {[%clk 0:03:04.9]} 9. Nge2 {[%clk 0:02:51.9]} 9... Re8
{[%clk 0:03:04.8]} 10. O-O {[%clk 0:02:45]} 10... Bg4 {[%clk 0:03:04.8]} 11. Qc2
{[%clk 0:02:38]} 11... Bh5 {[%clk 0:03:05]} 12. Nf4 {[%clk 0:02:34.3]} 12... Bg6
{[%clk 0:03:05.3]} 13. Bxg6 {[%clk 0:02:23.4]} 13... hxg6 {[%clk 0:03:06.2]} 14.
Qb3 {[%clk 0:02:23.6]} 14... g5 {[%clk 0:02:44.6]} 15. Nfxd5 {[%clk 0:01:53]}
15... Ng4 {[%clk 0:02:44.2]} 16. f4 {[%clk 0:01:49.2]} 16... Nc6 {[%clk
0:01:44.5]} 17. Qxb7 {[%clk 0:01:14.9]} 17... gxf4 {[%clk 0:01:32.2]} 18. Rxf4
{[%clk 0:01:02.6]} 18... Nxe3 {[%clk 0:01:29.2]} 19. Qxc7 {[%clk 0:01:00.6]}
19... Qe6 {[%clk 0:01:14.2]} 20. Re4 {[%clk 0:00:31.3]} 20... Nxd5 {[%clk
0:00:53]} 21. Rxe6 {[%clk 0:00:31.2]} 21... Nxc7 {[%clk 0:00:53.5]} 22. Rxc6
{[%clk 0:00:31.9]} 22... Ne6 {[%clk 0:00:54.1]} 23. d5 {[%clk 0:00:30.9]} 23...
Nd4 {[%clk 0:00:43.5]} 24. Rc4 {[%clk 0:00:30.8]} 24... Nc2 {[%clk 0:00:40.2]}
25. Rc1 {[%clk 0:00:27.7]} 25... Ne3 {[%clk 0:00:39.9]} 26. Rd4 {[%clk
0:00:26.5]} 26... Rab8 {[%clk 0:00:38.9]} 27. b3 {[%clk 0:00:24]} 27... Rbc8
{[%clk 0:00:39.3]} 28. d6 {[%clk 0:00:21.4]} 28... Red8 {[%clk 0:00:39.7]} 29.
Re1 {[%clk 0:00:20.9]} 29... Rxc3 {[%clk 0:00:37.2]} 30. d7 {[%clk 0:00:18.7]}
30... f5 {[%clk 0:00:15.8]} 31. g4 {[%clk 0:00:18.7]} 31... Kf7 {[%clk
0:00:15.3]} 32. gxf5 {[%clk 0:00:16.9]} 32... Nxf5 {[%clk 0:00:15.6]} 33. Rf4
{[%clk 0:00:14.4]} 33... g6 {[%clk 0:00:15.6]} 34. Rd1 {[%clk 0:00:14]} 34...
Rc7 {[%clk 0:00:15.1]} 35. Ra4 {[%clk 0:00:14.2]} 35... Rcxd7 {[%clk 0:00:14.3]}
36. Rxd7+ {[%clk 0:00:14.2]} 36... Rxd7 {[%clk 0:00:15.2]} 37. Rxa6 {[%clk
0:00:14.7]} 37... Rd2 {[%clk 0:00:13.3]} 38. a4 {[%clk 0:00:13.6]} 38... Nd4
{[%clk 0:00:12.8]} 39. Rb6 {[%clk 0:00:13.8]} 39... Nf3+ {[%clk 0:00:12.6]} 40.
Kf1 {[%clk 0:00:14.2]} 40... Nxh2+ {[%clk 0:00:12.9]} 41. Ke1 {[%clk 0:00:14.1]}
41... Nf3+ {[%clk 0:00:13.8]} 42. Kf1 {[%clk 0:00:14.7]} 42... Nh2+ {[%clk
0:00:14.2]} 43. Kg1 {[%clk 0:00:14.5]} 43... Nf3+ {[%clk 0:00:15.1]} 44. Kf1
{[%clk 0:00:15]} 44... g5 {[%clk 0:00:15.4]} 45. a5 {[%clk 0:00:14.3]} 45... g4
{[%clk 0:00:15.7]} 46. Rb4 {[%clk 0:00:13.4]} 46... Nd4 {[%clk 0:00:06.4]} 47.
a6 {[%clk 0:00:11]} 47... g3 {[%clk 0:00:04.8]} 48. Rxd4 {[%clk 0:00:11]} 48...
Rxd4 {[%clk 0:00:04.1]} 49. a7 {[%clk 0:00:11.4]} 49... Rd8 {[%clk 0:00:04.2]}
0-1

[Event "*** Titled Tuesday Blitz"]
[Site "Chess.com"]
[Date "2020.04.07"]
[Round "3"]
[White "Didici"]
[Black "Budisavljevic"]
[Result "0-1"]
[WhiteElo "2623"]
[BlackElo "2565"]
[TimeControl "180+1"]
[EndTime "13:30:34 PDT"]
[Termination "Budisavljevic won by resignation"]

1. e4 {[%clk 0:03:00.9]} 1... c5 {[%clk 0:02:58.3]} 2. Nc3 {[%clk 0:02:58.4]}
2... a6 {[%clk 0:02:56.1]} 3. Nf3 {[%clk 0:02:57.6]} 3... b5 {[%clk 0:02:53.1]}
4. g3 {[%clk 0:02:57.2]} 4... Bb7 {[%clk 0:02:52.1]} 5. d4 {[%clk 0:02:55.8]}
5... cxd4 {[%clk 0:02:50.8]} 6. Nxd4 {[%clk 0:02:54.9]} 6... e6 {[%clk
0:02:29.3]} 7. Bg2 {[%clk 0:02:53]} 7... Nf6 {[%clk 0:02:29.3]} 8. O-O {[%clk
0:02:52.7]} 8... b4 {[%clk 0:02:29.1]} 9. Nd5 {[%clk 0:02:52.2]} 9... exd5
{[%clk 0:02:28.4]} 10. exd5 {[%clk 0:02:53.1]} 10... Bc5 {[%clk 0:02:27.5]} 11.
Re1+ {[%clk 0:02:51.7]} 11... Kf8 {[%clk 0:02:27.2]} 12. Nf5 {[%clk 0:02:46.5]}
12... d6 {[%clk 0:02:26.8]} 13. Bf4 {[%clk 0:02:27.4]} 13... Bc8 {[%clk
0:02:12.5]} 14. Ne7 {[%clk 0:02:13.4]} 14... Bg4 {[%clk 0:01:49.8]} 15. Qd2
{[%clk 0:02:11.5]} 15... Ra7 {[%clk 0:01:39.3]} 16. Nc6 {[%clk 0:01:42.6]} 16...
Nxc6 {[%clk 0:01:38.9]} 17. dxc6 {[%clk 0:01:43]} 17... h6 {[%clk 0:01:37.6]}
18. h3 {[%clk 0:01:34.9]} 18... Be6 {[%clk 0:01:36.3]} 19. Rad1 {[%clk
0:01:32.6]} 19... Ne8 {[%clk 0:01:35.3]} 20. c3 {[%clk 0:01:28.3]} 20... a5
{[%clk 0:01:09.6]} 21. Bd5 {[%clk 0:01:23.6]} 21... Bxd5 {[%clk 0:00:48.7]} 22.
Qxd5 {[%clk 0:01:24.3]} 22... Re7 {[%clk 0:00:43]} 23. Rxe7 {[%clk 0:01:14]}
23... Qxe7 {[%clk 0:00:43.9]} 24. cxb4 {[%clk 0:00:57.5]} 24... axb4 {[%clk
0:00:42.4]} 25. Kf1 {[%clk 0:00:57.6]} 25... g5 {[%clk 0:00:39.8]} 26. Bd2
{[%clk 0:00:50]} 26... Qf6 {[%clk 0:00:34.9]} 27. f4 {[%clk 0:00:39.4]} 27...
Nc7 {[%clk 0:00:27.3]} 28. Qc4 {[%clk 0:00:29.2]} 28... gxf4 {[%clk 0:00:16.9]}
29. Bxf4 {[%clk 0:00:28.3]} 29... Rg8 {[%clk 0:00:16.7]} 30. Kg2 {[%clk
0:00:26.7]} 30... Ne6 {[%clk 0:00:15.4]} 31. Rf1 {[%clk 0:00:11.9]} 31... Qxb2+
{[%clk 0:00:12.1]} 32. Kh1 {[%clk 0:00:11.7]} 32... Nxf4 {[%clk 0:00:10]} 33.
Qxf4 {[%clk 0:00:10]} 33... Qg7 {[%clk 0:00:06.2]} 34. c7 {[%clk 0:00:09.5]}
34... Ke7 {[%clk 0:00:05]} 35. Re1+ {[%clk 0:00:08.4]} 35... Kd7 {[%clk
0:00:05]} 36. Qf5+ {[%clk 0:00:05.3]} 36... Kxc7 {[%clk 0:00:05.9]} 37. Re7+
{[%clk 0:00:05.6]} 37... Kb6 {[%clk 0:00:05.9]} 38. Qe4 {[%clk 0:00:05.3]} 38...
Qa1+ {[%clk 0:00:06]} 39. Kg2 {[%clk 0:00:05.3]} 39... Qg1+ {[%clk 0:00:05.8]}
40. Kf3 {[%clk 0:00:04.9]} 40... Rxg3+ {[%clk 0:00:06.7]} 41. Ke2 {[%clk
0:00:04.9]} 41... Qf2+ {[%clk 0:00:07.6]} 42. Kd1 {[%clk 0:00:04.3]} 42... Rg1+
{[%clk 0:00:08.5]} 0-1